[Event "72nd RUS-ch Higher League 2019"]
[Site "Yaroslavl"]
[Date "2019.07.06"]
[Round "9.5"]
[White "Grachev, Boris"]
[Black "Sakaev, Konstantin"]
[Result "1/2-1/2"]
[ECO "D02"]
[WhiteElo "2621"]
[BlackElo "2584"]
[Annotator "RC"]
[PlyCount "77"]
[EventDate "2019.06.27"]
[EventType "swiss"]
[EventCountry "RUS"]
[SourceTitle "playchess.com"]
[Source "ChessBase"]
[SourceQuality "1"]
[TimeControl "40/5400+30:1800+30"]

1. Nf3 d5 {[%emt 0:00:00]} 2. d4 {[%emt 0:00:00]} Nf6 {[%emt 0:00:17]} 3. c4 {[%emt 0:00:09]} e6 {[%emt 0:00:13]} 4. e3 {[%emt 0:00:55]} b6 {[%emt 0:03:15]} 5. b3 {[%emt 0:04:19]} Bb7 {[%emt 0:01:05]} 6. Bb2 {[%emt 0:02:44]} Bd6 {[%emt 0:02:00]} 7. Nbd2 {[%emt 0:02:35]} O-O {[%emt 0:00:30]} 8. Be2 {[%emt 0:04:19]} Nbd7 {[%emt 0:02:32]} 9. O-O {[%emt 0:00:30]} Ne4 {[%emt 0:06:29]} 10. Nxe4 {[%emt 0:04:48]} dxe4 {[%emt 0:00:15]} 11. Ne5 {[%emt 0:00:26]} Bxe5 {[%emt 0:08:44]} 12. dxe5 {[%emt 0:00:07]} Qe7 {[%emt 0:01:11]} 13. f4 {[%emt 0:12:42]} exf3 {[%emt 0:02:15]} 14. Bxf3 {[%emt 0:00:06]} Bxf3 {[%emt 0:05:38]} 15. Qxf3 {[%emt 0:00:38]} Rad8 {[%emt 0:01:33]} 16. Rad1 {[%emt 0:01:41]} Rfe8 {[%emt 0:19:12]} 17. Ba3 {[%emt 0:07:06]} Nc5 {[%emt 0:04:20]} 18. Rd4 {[%emt 0:04:43]} a5 {[%emt 0:01:45]} 19. Qh5 {[%emt 0:12:56]} Rd7 {[%emt 0:04:53]} 20. Rfd1 {[%emt 0:04:14]} Rdd8 {[%emt 0:02:14]} 21. Qf3 {[%emt 0:04:31]} h6 {[%emt 0:01:37]} 22. h3 {[%emt 0:02:58]} a4 {[%emt 0:05:27]} 23. Bxc5 {[%emt 0:09:37]} bxc5 {[%emt 0:00:17]} 24. Rxd8 {[%emt 0:00:04]} Rxd8 {[%emt 0:00:03]} 25. Rxd8+ {[%emt 0:04:45]} Qxd8 {[%emt 0:00:05]} 26. bxa4 {[%emt 0:00:04]} Qd2 {[%emt 0:02:30]} 27. Kh2 {[%emt 0:04:53]} g6 {[%emt 0:03:21]} 28. Qa8+ {[%emt 0:05:22]} Kg7 {[%emt 0:00:17]} 29. a5 {[%emt 0:00:21]} Qxe3 {[%emt 0:01:22]} 30. Qf3 {[%emt 0:01:05]} Qxe5+ {[%emt 0:08:20]} 31. Qg3 {[%emt 0:00:02]} Qe2 {[%emt 0:00:30]} 32. Qc3+ {[%emt 0:03:45]} Kg8 {[%emt 0:00:08]} 33. a3 {[%emt 0:01:24]} Qe4 {[%emt 0:01:22]} 34. a6 {[%emt 0:00:39]} Qc6 {[%emt 0:00:39]} 35. Qa5 {[%emt 0:00:10]} Qd6+ {[%emt 0:00:05]} 36. Kh1 {[%emt 0:00:07]} Qd1+ {[%emt 0:00:18]} 37. Kh2 {[%emt 0:00:04]} Qd6+ {[%emt 0:00:04]} 38. Kh1 {[%emt 0:01:44]} Qd1+ {[%emt 0:00:17]} 39. Kh2 {[%emt 0:00:03]} 1/2-1/2

[Event "72nd RUS-ch Higher League 2019"]
[Site "Yaroslavl"]
[Date "2019.07.06"]
[Round "9.6"]
[White "Esipenko, Andrey"]
[Black "Pridorozhni, Aleksei"]
[Result "1/2-1/2"]
[ECO "D78"]
[WhiteElo "2611"]
[BlackElo "2588"]
[Annotator "RC"]
[PlyCount "115"]
[EventDate "2019.06.27"]
[EventType "swiss"]
[EventCountry "RUS"]
[SourceTitle "playchess.com"]
[Source "ChessBase"]
[SourceQuality "1"]
[TimeControl "40/5400+30:1800+30"]

1. d4 {[%emt 0:00:00]} Nf6 {[%emt 0:00:00]} 2. Nf3 {[%emt 0:00:00]} g6 {[%emt 0:00:00]} 3. g3 {[%emt 0:00:15]} Bg7 {[%emt 0:00:06]} 4. Bg2 {[%emt 0:00:06]} O-O {[%emt 0:00:27]} 5. O-O {[%emt 0:00:06]} d5 {[%emt 0:04:37]} 6. c4 {[%emt 0:00:16]} c6 {[%emt 0:00:45]} 7. Qb3 {[%emt 0:00:31]} Qb6 {[%emt 0:03:45]} 8. Nc3 {[%emt 0:00:19]} dxc4 {[%emt 0:13:04]} 9. Qxc4 {[%emt 0:00:06]} Be6 {[%emt 0:00:06]} 10. Qa4 {[%emt 0:02:00]} Qa6 {[%emt 0:01:23]} 11. Qc2 {[%emt 0:04:33]} Nd5 {[%emt 0:01:50]} 12. Bg5 {[%emt 0:13:47]} Re8 {[%emt 0:07:56]} 13. Rfe1 {[%emt 0:08:48]} Nxc3 {[%emt 0:08:24]} 14. bxc3 {[%emt 0:02:14]} c5 {[%emt 0:05:50]} 15. Qe4 {[%emt 0:09:52]} h6 {[%emt 0:08:06]} 16. Bf4 {[%emt 0:01:51]} Nd7 {[%emt 0:03:45]} 17. Ne5 {[%emt 0:06:20]} Nxe5 {[%emt 0:12:12]} 18. Bxe5 {[%emt 0:00:16]} Bxe5 {[%emt 0:00:26]} 19. Qxe5 {[%emt 0:00:09]} cxd4 {[%emt 0:00:18]} 20. cxd4 {[%emt 0:00:14]} Bc4 {[%emt 0:01:50]} 21. e3 {[%emt 0:15:24]} Rab8 {[%emt 0:03:45]} 22. a4 {[%emt 0:09:37]} Qd6 {[%emt 0:00:43]} 23. Qe4 {[%emt 0:00:14]} e6 {[%emt 0:01:23]} 24. Qc2 {[%emt 0:02:49]} Rec8 {[%emt 0:03:10]} 25. Rec1 {[%emt 0:03:09]} Qd7 {[%emt 0:02:15]} 26. Qd2 {[%emt 0:00:05]} b5 {[%emt 0:00:51]} 27. axb5 {[%emt 0:01:22]} Bxb5 {[%emt 0:00:05]} 28. e4 {[%emt 0:04:11]} Rxc1+ {[%emt 0:02:25]} 29. Rxc1 {[%emt 0:00:09]} Rd8 {[%emt 0:00:23]} 30. d5 {[%emt 0:02:09]} exd5 {[%emt 0:00:04]} 31. exd5 {[%emt 0:00:07]} h5 {[%emt 0:00:40]} 32. Qf4 {[%emt 0:01:24]} Rc8 {[%emt 0:02:58]} 33. Ra1 {[%emt 0:03:07]} Rd8 {[%emt 0:01:13]} 34. h4 {[%emt 0:03:19]} a6 {[%emt 0:03:19]} 35. Rc1 {[%emt 0:00:06]} Qd6 {[%emt 0:06:06]} 36. Rc8 {[%emt 0:00:42]} Kg7 {[%emt 0:00:08]} 37. Qd4+ {[%emt 0:01:23]} Kg8 {[%emt 0:00:06]} 38. Rxd8+ {[%emt 0:00:56]} Qxd8 {[%emt 0:00:05]} 39. d6 {[%emt 0:00:05]} Bd7 {[%emt 0:01:34]} 40. Bd5 {[%emt 0:00:00]} a5 {[%emt 0:00:00]} 41. Qf4 {[%emt 0:06:10]} Qe8 {[%emt 0:02:27]} 42. Qf6 {[%emt 0:04:46]} Bf5 {[%emt 0:00:10]} 43. Kh2 {[%emt 0:13:54]} Qd7 {[%emt 0:09:08]} 44. Qd4 {[%emt 0:04:08]} a4 {[%emt 0:04:17]} 45. Qc5 {[%emt 0:03:01]} Qd8 {[%emt 0:00:10]} 46. Qb4 {[%emt 0:03:55]} Bd7 {[%emt 0:00:45]} 47. Qf4 {[%emt 0:00:28]} Bf5 {[%emt 0:09:59]} 48. Qd4 {[%emt 0:01:35]} Bd7 {[%emt 0:01:16]} 49. Qe5 {[%emt 0:01:23]} Bf5 {[%emt 0:01:14]} 50. Kg1 {[%emt 0:00:57]} a3 {[%emt 0:01:58]} 51. Ba2 {[%emt 0:01:05]} Qc8 {[%emt 0:02:27]} 52. Qe3 {[%emt 0:00:53]} Qa8 {[%emt 0:00:08]} 53. Kh2 {[%emt 0:00:37]} Bh3 {[%emt 0:01:10]} 54. f3 {[%emt 0:00:44]} Bd7 {[%emt 0:00:55]} 55. Qg5 {[%emt 0:01:05]} Qxf3 {[%emt 0:01:32]} 56. Qxg6+ {[%emt 0:00:26]} Kf8 {[%emt 0:00:10]} 57. Qh6+ {[%emt 0:00:19]} Kg8 {[%emt 0:00:08]} 58. Qg6+ {[%emt 0:00:39]} 1/2-1/2

[Event "72nd RUS-ch Higher League 2019"]
[Site "Yaroslavl"]
[Date "2019.07.06"]
[Round "9.8"]
[White "Romanov, Evgeny"]
[Black "Ponkratov, Pavel"]
[Result "0-1"]
[ECO "A46"]
[WhiteElo "2577"]
[BlackElo "2649"]
[Annotator "RC"]
[PlyCount "66"]
[EventDate "2019.06.27"]
[EventType "swiss"]
[EventCountry "RUS"]
[SourceTitle "playchess.com"]
[Source "ChessBase"]
[SourceQuality "1"]
[TimeControl "40/5400+30:1800+30"]

1. d4 {[%emt 0:03:07]} e6 {[%emt 0:00:00]} 2. Nf3 {[%emt 0:02:30]} Nf6 {[%emt 0:00:00]} 3. Bg5 {[%emt 0:00:36]} c5 {[%emt 0:00:21]} 4. e3 {[%emt 0:00:23]} h6 {[%emt 0:00:46]} 5. Bh4 {[%emt 0:00:14]} Nc6 {[%emt 0:00:19]} 6. c3 {[%emt 0:03:37]} g5 {[%emt 0:05:05]} 7. Bg3 {[%emt 0:00:26]} Ne4 {[%emt 0:00:04]} 8. d5 {[%emt 0:06:53]} exd5 {[%emt 0:01:35]} 9. Qxd5 {[%emt 0:00:22]} Nf6 {[%emt 0:00:04]} 10. Qb3 {[%emt 0:03:28]} d5 {[%emt 0:00:28]} 11. Bb5 {[%emt 0:01:07]} Bg7 {[%emt 0:03:27]} 12. Ne5 {[%emt 0:04:48]} Qb6 {[%emt 0:01:37]} 13. Nxc6 {[%emt 0:02:21]} bxc6 {[%emt 0:00:06]} 14. Ba4 {[%emt 0:00:05]} Qa6 {[%emt 0:03:47]} 15. Nd2 {[%emt 0:04:33]} O-O {[%emt 0:04:29]} 16. c4 {[%emt 0:20:03]} Be6 {[%emt 0:06:40]} 17. Be5 {[%emt 0:09:03]} Rfd8 {[%emt 0:16:07]} 18. Qc2 {[%emt 0:06:30]} dxc4 {[%emt 0:00:13]} 19. b3 {[%emt 0:14:45]} Rd5 {[%emt 0:24:50]} 20. Bb2 {[%emt 0:09:49]} Rad8 {[%emt 0:04:34]} 21. O-O-O {[%emt 0:01:35]} cxb3 {[%emt 0:13:26]} 22. axb3 {[%emt 0:00:02]} Bf5 {[%emt 0:02:29]} 23. Qc4 {[%emt 0:02:33]} Qc8 {[%emt 0:01:27]} 24. Bxf6 {[%emt 0:02:07]} Bxf6 {[%emt 0:00:09]} 25. e4 {[%emt 0:00:27]} Rd3 {[%emt 0:01:36]} 26. Nb1 {[%emt 0:00:46]} R8d4 {[%emt 0:02:29]} 27. Qxc5 {[%emt 0:00:41]} Bxe4 {[%emt 0:00:22]} 28. Rxd3 {[%emt 0:00:12]} Rxd3 {[%emt 0:00:19]} 29. f3 {[%emt 0:00:28]} Rd5 {[%emt 0:00:51]} 30. Qc4 {[%emt 0:00:41]} Bg6 {[%emt 0:00:23]} 31. Nc3 {[%emt 0:00:44]} Qf5 {[%emt 0:00:56]} 32. Ne4 {[%emt 0:00:28]} Qf4+ {[%emt 0:00:11]} 33. Kb1 {[%emt 0:00:05]} Qe5 {[%emt 0:00:34]} 0-1

[Event "72nd RUS-ch Higher League 2019"]
[Site "Yaroslavl"]
[Date "2019.07.06"]
[Round "9.11"]
[White "Salemgareev, Tagir"]
[Black "Khismatullin, Denis"]
[Result "1-0"]
[ECO "E10"]
[WhiteElo "2412"]
[BlackElo "2618"]
[Annotator "RC"]
[PlyCount "97"]
[EventDate "2019.06.27"]
[EventType "swiss"]
[EventCountry "RUS"]
[SourceTitle "playchess.com"]
[Source "ChessBase"]
[SourceQuality "1"]
[TimeControl "40/5400+30:1800+30"]

1. d4 {[%emt 0:00:22]} Nf6 {[%emt 0:00:00]} 2. c4 {[%emt 0:00:05]} e6 {[%emt 0:00:00]} 3. Nf3 {[%emt 0:00:03]} d5 {[%emt 0:01:17]} 4. g3 {[%emt 0:00:05]} Bb4+ {[%emt 0:03:45]} 5. Bd2 {[%emt 0:00:08]} Bd6 {[%emt 0:00:03]} 6. Bg2 {[%emt 0:00:05]} O-O {[%emt 0:00:06]} 7. O-O {[%emt 0:00:04]} c6 {[%emt 0:00:17]} 8. Nc3 {[%emt 0:03:24]} dxc4 {[%emt 0:05:07]} 9. e4 {[%emt 0:09:47]} Be7 {[%emt 0:00:08]} 10. Qc2 {[%emt 0:01:06]} Na6 {[%emt 0:19:34]} 11. e5 {[%emt 0:54:14]} Nb4 {[%emt 0:02:10]} 12. Qc1 {[%emt 0:00:07]} Nfd5 {[%emt 0:03:17]} 13. Ne4 {[%emt 0:00:19]} b5 {[%emt 0:00:49]} 14. Bg5 {[%emt 0:00:13]} Nd3 {[%emt 0:02:47]} 15. Bxe7 {[%emt 0:00:15]} Qxe7 {[%emt 0:01:19]} 16. Qc2 {[%emt 0:00:04]} c5 {[%emt 0:04:15]} 17. dxc5 {[%emt 0:02:29]} Ba6 {[%emt 0:06:23]} 18. a3 {[%emt 0:01:40]} Nxc5 {[%emt 0:07:25]} 19. Nxc5 {[%emt 0:00:17]} Qxc5 {[%emt 0:00:05]} 20. Ng5 {[%emt 0:00:08]} g6 {[%emt 0:00:20]} 21. Qe4 {[%emt 0:06:27]} Kg7 {[%emt 0:06:17]} 22. Qg4 {[%emt 0:01:18]} Rad8 {[%emt 0:08:51]} 23. Rad1 {[%emt 0:02:09]} Qe7 {[%emt 0:09:18]} 24. Bxd5 {[%emt 0:06:37]} Rxd5 {[%emt 0:04:00]} 25. Rxd5 {[%emt 0:00:05]} exd5 {[%emt 0:00:03]} 26. Nf3 {[%emt 0:00:27]} d4 {[%emt 0:02:18]} 27. Qxd4 {[%emt 0:01:03]} Rd8 {[%emt 0:04:43]} 28. Qf4 {[%emt 0:00:21]} Rd5 {[%emt 0:06:59]} 29. Re1 {[%emt 0:01:50]} Bc8 {[%emt 0:00:05]} 30. Nd4 {[%emt 0:01:19]} Bh3 {[%emt 0:02:22]} 31. g4 {[%emt 0:04:06]} Qd8 {[%emt 0:00:41]} 32. Re4 {[%emt 0:00:45]} Qh4 {[%emt 0:00:42]} 33. e6 {[%emt 0:01:39]} Qe7 {[%emt 0:00:23]} 34. exf7 {[%emt 0:01:00]} Qxf7 {[%emt 0:00:26]} 35. Qe3 {[%emt 0:00:14]} Qf6 {[%emt 0:00:34]} 36. Ne6+ {[%emt 0:01:58]} Kg8 {[%emt 0:00:07]} 37. Qxh3 {[%emt 0:01:30]} Rd3 {[%emt 0:00:33]} 38. Qf1 {[%emt 0:00:31]} Qxb2 {[%emt 0:00:21]} 39. Re1 {[%emt 0:00:35]} Qd2 {[%emt 0:00:58]} 40. Nc5 {[%emt 0:00:00]} Rd4 {[%emt 0:00:00]} 41. Ne4 {[%emt 0:01:12]} Qf4 {[%emt 0:04:04]} 42. Qe2 {[%emt 0:02:11]} a5 {[%emt 0:03:37]} 43. h3 {[%emt 0:01:24]} b4 {[%emt 0:08:13]} 44. axb4 {[%emt 0:01:43]} axb4 {[%emt 0:00:01]} 45. Ng5 {[%emt 0:01:19]} Rd2 {[%emt 0:01:08]} 46. Qe6+ {[%emt 0:00:35]} Kg7 {[%emt 0:00:43]} 47. Qe7+ {[%emt 0:00:23]} Kh6 {[%emt 0:00:05]} 48. Nf7+ {[%emt 0:01:09]} Kg7 {[%emt 0:00:02]} 49. Nd6+ {[%emt 0:00:14]} 1-0

[Event "72nd RUS-ch Higher League 2019"]
[Site "Yaroslavl"]
[Date "2019.07.06"]
[Round "9.12"]
[White "Rozum, Ivan"]
[Black "Petrov, Nikita"]
[Result "1/2-1/2"]
[ECO "D11"]
[WhiteElo "2572"]
[BlackElo "2610"]
[Annotator "RC"]
[PlyCount "61"]
[EventDate "2019.06.27"]
[EventType "swiss"]
[EventCountry "RUS"]
[SourceTitle "playchess.com"]
[Source "ChessBase"]
[SourceQuality "1"]
[TimeControl "40/5400+30:1800+30"]

1. Nf3 {[%emt 0:00:05]} d5 {[%emt 0:00:00]} 2. d4 {[%emt 0:00:07]} Nf6 {[%emt 0:00:00]} 3. c4 {[%emt 0:00:06]} c6 {[%emt 0:00:11]} 4. e3 {[%emt 0:00:14]} Bg4 {[%emt 0:00:31]} 5. h3 {[%emt 0:04:55]} Bh5 {[%emt 0:01:05]} 6. Nbd2 {[%emt 0:00:12]} Nbd7 {[%emt 0:06:23]} 7. Bd3 {[%emt 0:01:30]} e6 {[%emt 0:01:42]} 8. b3 {[%emt 0:01:00]} Bd6 {[%emt 0:02:06]} 9. Bb2 {[%emt 0:00:06]} Qe7 {[%emt 0:05:05]} 10. Qc2 {[%emt 0:03:21]} Ba3 {[%emt 0:08:56]} 11. Bc3 {[%emt 0:02:34]} Bb4 {[%emt 0:02:22]} 12. Bxb4 {[%emt 0:00:20]} Qxb4 {[%emt 0:00:05]} 13. O-O {[%emt 0:00:06]} O-O {[%emt 0:02:31]} 14. Ne5 {[%emt 0:03:51]} Bg6 {[%emt 0:02:19]} 15. Bxg6 {[%emt 0:00:57]} hxg6 {[%emt 0:00:06]} 16. Ndf3 {[%emt 0:00:17]} Qe7 {[%emt 0:04:28]} 17. Nd3 {[%emt 0:01:42]} dxc4 {[%emt 0:11:43]} 18. Qxc4 {[%emt 0:00:12]} a5 {[%emt 0:00:23]} 19. a3 {[%emt 0:00:59]} Qd6 {[%emt 0:09:28]} 20. Rfc1 {[%emt 0:03:46]} Rfc8 {[%emt 0:01:30]} 21. Qc2 {[%emt 0:02:43]} b6 {[%emt 0:05:39]} 22. b4 {[%emt 0:01:08]} Nd5 {[%emt 0:09:15]} 23. Qb2 {[%emt 0:10:52]} Qf8 {[%emt 0:03:30]} 24. Nd2 {[%emt 0:03:44]} c5 {[%emt 0:08:14]} 25. bxc5 {[%emt 0:09:21]} bxc5 {[%emt 0:00:07]} 26. Qb5 {[%emt 0:01:47]} cxd4 {[%emt 0:06:03]} 27. Qxd7 {[%emt 0:00:45]} Rd8 {[%emt 0:00:55]} 28. Qb7 {[%emt 0:03:24]} Rdb8 {[%emt 0:00:45]} 29. Qd7 {[%emt 0:11:13]} Rd8 {[%emt 0:00:03]} 30. Qb7 {[%emt 0:00:07]} Rdb8 {[%emt 0:00:04]} 31. Qd7 {[%emt 0:00:44]} 1/2-1/2

[Event "72nd RUS-ch Higher League 2019"]
[Site "Yaroslavl"]
[Date "2019.07.06"]
[Round "9.14"]
[White "Lysyj, Igor"]
[Black "Airapetian, Gor"]
[Result "1-0"]
[ECO "E04"]
[WhiteElo "2623"]
[BlackElo "2442"]
[Annotator "RC"]
[PlyCount "79"]
[EventDate "2019.06.27"]
[EventType "swiss"]
[EventCountry "RUS"]
[SourceTitle "playchess.com"]
[Source "ChessBase"]
[SourceQuality "1"]
[TimeControl "40/5400+30:1800+30"]

1. d4 {[%emt 0:01:50]} d5 {[%emt 0:00:00]} 2. c4 {[%emt 0:00:06]} e6 {[%emt 0:00:00]} 3. Nf3 {[%emt 0:00:06]} Nf6 {[%emt 0:00:04]} 4. g3 {[%emt 0:00:05]} dxc4 {[%emt 0:01:13]} 5. Bg2 {[%emt 0:00:23]} Bb4+ {[%emt 0:00:23]} 6. Bd2 {[%emt 0:00:07]} a5 {[%emt 0:00:26]} 7. Qc2 {[%emt 0:00:21]} Bxd2+ {[%emt 0:00:40]} 8. Qxd2 {[%emt 0:00:10]} b5 {[%emt 0:01:06]} 9. Qg5 {[%emt 0:00:16]} O-O {[%emt 0:36:14]} 10. Qxb5 {[%emt 0:00:09]} Qd5 {[%emt 0:00:50]} 11. Nc3 {[%emt 0:08:43]} Qxb5 {[%emt 0:01:09]} 12. Nxb5 {[%emt 0:00:07]} Nbd7 {[%emt 0:00:04]} 13. Na3 {[%emt 0:05:21]} Rb8 {[%emt 0:01:48]} 14. Nxc4 {[%emt 0:01:40]} Ba6 {[%emt 0:00:21]} 15. Nfd2 {[%emt 0:01:26]} Rb4 {[%emt 0:07:04]} 16. Nxa5 {[%emt 0:16:09]} Rxb2 {[%emt 0:03:52]} 17. Nab3 {[%emt 0:00:08]} c5 {[%emt 0:15:46]} 18. dxc5 {[%emt 0:03:16]} Rc8 {[%emt 0:00:11]} 19. c6 {[%emt 0:02:17]} Ne5 {[%emt 0:03:09]} 20. Kd1 {[%emt 0:04:51]} Nxc6 {[%emt 0:18:04]} 21. Kc1 {[%emt 0:00:13]} Rxa2 {[%emt 0:02:01]} 22. Rxa2 {[%emt 0:00:19]} Nb4+ {[%emt 0:00:04]} 23. Kb1 {[%emt 0:00:18]} Nxa2 {[%emt 0:00:09]} 24. Kxa2 {[%emt 0:00:04]} Bxe2 {[%emt 0:00:05]} 25. Rc1 {[%emt 0:00:53]} Rd8 {[%emt 0:00:13]} 26. h3 {[%emt 0:00:21]} h5 {[%emt 0:00:34]} 27. Kb2 {[%emt 0:02:38]} Bd3 {[%emt 0:01:43]} 28. Rc5 {[%emt 0:00:42]} g6 {[%emt 0:00:45]} 29. Kc1 {[%emt 0:00:25]} Rb8 {[%emt 0:00:50]} 30. Kd1 {[%emt 0:01:22]} Kg7 {[%emt 0:00:48]} 31. Rc3 {[%emt 0:00:25]} Bb5 {[%emt 0:00:33]} 32. Ke1 {[%emt 0:01:54]} Rb6 {[%emt 0:00:28]} 33. Nc5 {[%emt 0:01:27]} Be8 {[%emt 0:00:51]} 34. Rb3 {[%emt 0:00:17]} Rd6 {[%emt 0:00:11]} 35. Rb7 {[%emt 0:01:41]} Kf8 {[%emt 0:02:05]} 36. Nc4 {[%emt 0:02:22]} Rd8 {[%emt 0:01:23]} 37. Ne5 {[%emt 0:00:17]} Rc8 {[%emt 0:00:20]} 38. Ncd3 {[%emt 0:00:07]} Ng8 {[%emt 0:00:52]} 39. Kd2 {[%emt 0:02:38]} f6 {[%emt 0:01:51]} 40. Nf4 {[%emt 0:00:00]} 1-0

[Event "72nd RUS-ch Higher League 2019"]
[Site "Yaroslavl"]
[Date "2019.07.06"]
[Round "9.15"]
[White "Timofeev, Artyom"]
[Black "Kardashevskiy, Evgeny"]
[Result "1/2-1/2"]
[ECO "D53"]
[WhiteElo "2608"]
[BlackElo "2429"]
[Annotator "RC"]
[PlyCount "151"]
[EventDate "2019.06.27"]
[EventType "swiss"]
[EventCountry "RUS"]
[SourceTitle "playchess.com"]
[Source "ChessBase"]
[SourceQuality "1"]
[TimeControl "40/5400+30:1800+30"]

1. c4 {[%emt 0:00:00]} e6 {[%emt 0:00:00]} 2. Nc3 {[%emt 0:01:21]} d5 {[%emt 0:00:19]} 3. d4 {[%emt 0:00:41]} Nf6 {[%emt 0:00:29]} 4. Bg5 {[%emt 0:00:51]} Be7 {[%emt 0:00:33]} 5. e3 {[%emt 0:00:50]} h6 {[%emt 0:00:41]} 6. Bxf6 {[%emt 0:04:55]} Bxf6 {[%emt 0:00:26]} 7. Qf3 {[%emt 0:00:23]} c6 {[%emt 0:05:50]} 8. O-O-O {[%emt 0:04:17]} Nd7 {[%emt 0:02:30]} 9. e4 {[%emt 0:01:22]} dxe4 {[%emt 0:02:19]} 10. Qxe4 {[%emt 0:10:39]} O-O {[%emt 0:10:23]} 11. h4 {[%emt 0:03:49]} c5 {[%emt 0:04:31]} 12. Bd3 {[%emt 0:01:04]} Re8 {[%emt 0:07:49]} 13. Qh7+ {[%emt 0:15:46]} Kf8 {[%emt 0:00:09]} 14. d5 {[%emt 0:02:25]} Bxc3 {[%emt 0:04:34]} 15. bxc3 {[%emt 0:01:05]} Qf6 {[%emt 0:05:18]} 16. Ne2 {[%emt 0:03:14]} exd5 {[%emt 0:20:48]} 17. Rhe1 {[%emt 0:08:07]} Ne5 {[%emt 0:04:21]} 18. Bc2 {[%emt 0:00:27]} dxc4 {[%emt 0:01:29]} 19. Ng3 {[%emt 0:01:26]} Nd3+ {[%emt 0:02:08]} 20. Bxd3 {[%emt 0:01:52]} Rxe1 {[%emt 0:06:07]} 21. Qh8+ {[%emt 0:01:43]} Ke7 {[%emt 0:00:07]} 22. Rxe1+ {[%emt 0:00:11]} Be6 {[%emt 0:00:14]} 23. Rxe6+ {[%emt 0:03:37]} fxe6 {[%emt 0:00:16]} 24. Qxa8 {[%emt 0:00:10]} Qxc3+ {[%emt 0:00:15]} 25. Bc2 {[%emt 0:00:12]} Qe1+ {[%emt 0:00:33]} 26. Bd1 {[%emt 0:02:31]} Qc3+ {[%emt 0:00:53]} 27. Kb1 {[%emt 0:05:09]} Qb4+ {[%emt 0:00:59]} 28. Kc2 {[%emt 0:00:21]} c3 {[%emt 0:00:20]} 29. Ne2 {[%emt 0:02:18]} Qb2+ {[%emt 0:01:39]} 30. Kd3 {[%emt 0:00:07]} c4+ {[%emt 0:02:04]} 31. Kxc4 {[%emt 0:07:37]} c2 {[%emt 0:00:18]} 32. Bxc2 {[%emt 0:01:18]} Qxc2+ {[%emt 0:00:12]} 33. Nc3 {[%emt 0:00:18]} b5+ {[%emt 0:00:16]} 34. Kxb5 {[%emt 0:00:20]} Qxc3 {[%emt 0:00:16]} 35. Qxa7+ {[%emt 0:02:49]} Kf6 {[%emt 0:00:20]} 36. a4 {[%emt 0:03:52]} Qb3+ {[%emt 0:01:58]} 37. Kc6 {[%emt 0:00:23]} Qc4+ {[%emt 0:01:03]} 38. Kd7 {[%emt 0:01:04]} Qd5+ {[%emt 0:01:08]} 39. Ke8 {[%emt 0:01:17]} Kg6 {[%emt 0:06:21]} 40. g3 {[%emt 0:00:00]} Kh7 {[%emt 0:00:00]} 41. a5 {[%emt 0:08:54]} e5 {[%emt 0:06:11]} 42. Qb6 {[%emt 0:00:57]} e4 {[%emt 0:01:07]} 43. a6 {[%emt 0:03:29]} Qe5+ {[%emt 0:03:24]} 44. Kd8 {[%emt 0:00:15]} Qd5+ {[%emt 0:00:53]} 45. Ke7 {[%emt 0:11:22]} Qe5+ {[%emt 0:00:32]} 46. Kd7 {[%emt 0:00:27]} Qd5+ {[%emt 0:00:12]} 47. Qd6 {[%emt 0:01:10]} Qf7+ {[%emt 0:01:29]} 48. Qe7 {[%emt 0:00:09]} Qxf2 {[%emt 0:01:00]} 49. Qxe4+ {[%emt 0:00:09]} Kh8 {[%emt 0:00:20]} 50. Qc6 {[%emt 0:04:19]} Kh7 {[%emt 0:02:15]} 51. h5 {[%emt 0:08:26]} Qf7+ {[%emt 0:03:26]} 52. Kd8 {[%emt 0:00:42]} Qf8+ {[%emt 0:00:38]} 53. Kd7 {[%emt 0:04:03]} Qf7+ {[%emt 0:00:08]} 54. Kc8 {[%emt 0:00:35]} Qf8+ {[%emt 0:00:43]} 55. Kb7 {[%emt 0:00:16]} Qe7+ {[%emt 0:00:47]} 56. Qc7 {[%emt 0:00:29]} Qb4+ {[%emt 0:01:01]} 57. Kc8 {[%emt 0:01:17]} Qf8+ {[%emt 0:01:00]} 58. Kb7 {[%emt 0:00:57]} Qb4+ {[%emt 0:00:09]} 59. Ka8 {[%emt 0:00:20]} Qe4+ {[%emt 0:01:18]} 60. Kb8 {[%emt 0:00:18]} Qb4+ {[%emt 0:00:32]} 61. Kc8 {[%emt 0:00:30]} Qf8+ {[%emt 0:00:30]} 62. Qd8 {[%emt 0:00:26]} Qc5+ {[%emt 0:00:31]} 63. Kb7 {[%emt 0:00:33]} Qb5+ {[%emt 0:01:44]} 64. Qb6 {[%emt 0:00:09]} Qd7+ {[%emt 0:02:01]} 65. Qc7 {[%emt 0:00:25]} Qd5+ {[%emt 0:00:26]} 66. Qc6 {[%emt 0:00:27]} Qf7+ {[%emt 0:00:55]} 67. Kb6 {[%emt 0:00:17]} Qb3+ {[%emt 0:00:32]} 68. Qb5 {[%emt 0:01:11]} Qe6+ {[%emt 0:00:47]} 69. Ka5 {[%emt 0:01:05]} Qa2+ {[%emt 0:00:47]} 70. Kb6 {[%emt 0:00:35]} Qe6+ {[%emt 0:00:06]} 71. Kc7 {[%emt 0:00:19]} Qe7+ {[%emt 0:00:55]} 72. Qd7 {[%emt 0:00:34]} Qc5+ {[%emt 0:01:50]} 73. Kb7 {[%emt 0:00:48]} Qb4+ {[%emt 0:00:14]} 74. Kc8 {[%emt 0:00:20]} Qf8+ {[%emt 0:00:50]} 75. Qd8 {[%emt 0:00:45]} Qc5+ {[%emt 0:00:22]} 76. Qc7 {[%emt 0:00:21]} 1/2-1/2